bitfinex/quotes_BTCUSD_20251201
["timestamp","ask_amount","ask_price","bid_price","bid_amount"]
[1764620137240,0.74924642,85583.0,85582.0,0.01270632]
[1764620137638,0.74936266,85583.0,85582.0,0.01270632]
[1764620138102,0.75036266,85583.0,85582.0,0.01780527]
[1764620138587,0.46657988,85583.0,85582.0,0.01780527]
[1764620138742,0.46557988,85583.0,85582.0,0.01480527]
[1764620138945,0.00111624,85583.0,85582.0,0.01780527]
[1764620139709,0.32411624,85583.0,85582.0,0.01780527]
[1764620139845,0.34918947,85583.0,85582.0,0.01780527]
[1764620140715,0.38055038,85583.0,85582.0,0.01780527]
[1764620141092,0.34918947,85583.0,85582.0,0.01780527]
[1764620141294,0.36794947,85583.0,85582.0,0.01780527]
[1764620142107,0.02618947,85583.0,85582.0,0.01780527]
[1764620142306,0.00111624,85583.0,85582.0,0.01780527]
[1764620143552,0.00111624,85583.0,85582.0,0.01880527]
[1764620143873,0.00011624,85583.0,85582.0,0.01580527]
[1764620144070,0.00111624,85583.0,85582.0,0.01980527]
[1764620144518,0.00011624,85583.0,85582.0,0.01580527]
[1764620144697,0.00111624,85583.0,85582.0,0.01880527]
[1764620145118,0.00111624,85583.0,85582.0,0.01980527]
[1764620145881,0.00111624,85583.0,85582.0,0.25349927]
[1764620146225,0.00111624,85583.0,85582.0,0.01980527]
[1764620146423,0.00111624,85583.0,85582.0,0.25349927]
[1764620146827,0.00111624,85583.0,85582.0,0.26497931]
[1764620147026,0.00111624,85583.0,85582.0,0.25349927]
[1764620147753,0.00111624,85583.0,85582.0,0.26397931]
[1764620147948,0.00011624,85583.0,85582.0,0.24849927]
[1764620148152,0.00011624,85583.0,85582.0,0.3374119]
[1764620148379,0.00111624,85583.0,85582.0,0.3434119]
[1764620148539,0.00011624,85583.0,85582.0,0.3384119]
[1764620148746,0.00011624,85583.0,85582.0,0.25997931]
[1764620148933,0.00111624,85583.0,85582.0,0.26997931]
[1764620149130,0.00111624,85583.0,85582.0,0.25849927]
[1764620149593,0.00111624,85583.0,85582.0,0.25649927]
[1764620149922,0.00111624,85583.0,85582.0,0.02280527]
[1764620150699,0.00011624,85583.0,85582.0,0.01480527]
[1764620150853,0.00011624,85583.0,85582.0,0.01580527]
[1764620151043,0.00011624,85583.0,85582.0,0.09100142]
[1764620151243,0.00111624,85583.0,85582.0,0.09800142]
[1764620151437,0.00111624,85583.0,85582.0,0.33169542]
[1764620151684,0.00011624,85583.0,85582.0,0.32469542]
[1764620151897,0.00111624,85583.0,85582.0,0.01880527]
[1764620152196,0.23380751,85583.0,85582.0,0.01580527]
[1764620152572,0.23380751,85583.0,85582.0,0.01480527]
[1764620153075,0.00011624,85583.0,85582.0,0.01480527]
[1764620153285,0.00011624,85583.0,85582.0,0.24849927]
[1764620153471,0.00111624,85583.0,85582.0,0.0960689]
[1764620153666,0.00111624,85583.0,85582.0,0.24849927]
[1764620153868,0.00011624,85583.0,85582.0,0.24949927]
[1764620154075,0.00111624,85583.0,85582.0,0.25349927]
[1764620154254,0.00111624,85583.0,85582.0,0.26497931]
[1764620154454,0.00111624,85583.0,85582.0,0.25249927]
[1764620154707,0.00111624,85583.0,85582.0,0.25349927]
[1764620154909,0.00011624,85583.0,85582.0,0.01580527]
[1764620155141,0.23380751,85583.0,85582.0,0.01580527]
[1764620155261,0.23480751,85583.0,85582.0,0.01980527]
[1764620155457,0.00111624,85583.0,85582.0,0.02080527]
[1764620155899,0.23480751,85583.0,85582.0,0.02080527]
[1764620156115,0.02622226,85583.0,85582.0,0.02080527]
[1764620156272,0.00011624,85583.0,85582.0,0.24949927]
[1764620156846,0.00111624,85583.0,85582.0,0.31602226]
[1764620157196,0.00111624,85583.0,85582.0,0.3275023]
[1764620157402,0.00011624,85583.0,85582.0,0.3225023]
[1764620157607,0.00011624,85583.0,85582.0,0.3235023]
[1764620157771,0.00011624,85583.0,85582.0,0.42829953]
[1764620158186,0.00111624,85583.0,85582.0,0.83329953]
[1764620158391,0.00111624,85583.0,85582.0,0.83529953]
[1764620159494,0.00011624,85583.0,85582.0,0.82929953]
[1764620159703,0.00111624,85583.0,85582.0,0.83929953]
[1764620160318,0.00111624,85583.0,85582.0,1.16229953]
[1764620160519,0.00111624,85583.0,85582.0,0.99497931]
[1764620160748,0.23480751,85583.0,85582.0,0.02680527]
[1764620161176,0.00111624,85583.0,85582.0,0.26049927]
[1764620161533,0.00111624,85583.0,85582.0,0.25849927]
[1764620161734,0.00111624,85583.0,85582.0,0.26049927]
[1764620162047,0.00111624,85583.0,85582.0,0.27197931]
[1764620162225,0.00111624,85583.0,85582.0,0.32794257]
[1764620162459,0.00011624,85583.0,85582.0,0.01680527]
[1764620162656,0.00011624,85583.0,85582.0,0.02580527]
[1764620162657,0.00111624,85583.0,85582.0,0.02580527]
[1764620162859,0.00011624,85583.0,85582.0,0.01680527]
[1764620163134,0.00011624,85583.0,85582.0,0.01480527]
[1764620163335,0.00111624,85583.0,85582.0,0.02280527]
[1764620163536,0.00011624,85583.0,85582.0,0.01580527]
[1764620163895,0.00111624,85583.0,85582.0,0.02080527]
[1764620164100,0.00111624,85583.0,85582.0,0.02180527]
[1764620164285,0.23327532,85584.0,85582.0,0.02180527]
[1764620164525,0.23327532,85584.0,85582.0,0.02009628]
[1764620164926,0.323,85583.0,85582.0,0.02009628]
[1764620165082,0.34818248,85583.0,85582.0,0.02009628]
[1764620165281,0.02518248,85583.0,85582.0,0.01409628]
[1764620165465,0.28993725,85584.0,85582.0,0.01409628]
[1764620165667,0.29093725,85584.0,85582.0,0.01909628]
[1764620165918,0.03147945,85583.0,85582.0,0.01309628]
[1764620166122,0.2584578,85584.0,85582.0,0.01309628]
[1764620166296,0.03147663,85583.0,85582.0,0.01409628]
[1764620166501,0.23375135,85561.0,85560.0,0.0004]
[1764620166772,0.39544963,85561.0,85560.0,0.0004]
[1764620168167,0.25932222,85561.0,85560.0,0.0004]
[1764620168439,0.23413974,85561.0,85560.0,0.0004]
[1764620168864,0.23413974,85561.0,85560.0,0.0014]
[1764620169068,0.23413974,85561.0,85560.0,0.0004]
[1764620169279,0.35154715,85561.0,85560.0,0.0004]
[1764620169477,0.35154715,85561.0,85560.0,0.0034]
[1764620169899,0.37670099,85561.0,85560.0,0.0034]
[1764620170316,0.37670099,85561.0,85560.0,0.00321009]
[1764620170541,0.37670099,85561.0,85560.0,0.00521009]
[1764620171064,0.69970099,85561.0,85560.0,0.00521009]
[1764620171678,0.69970099,85561.0,85560.0,0.00321009]
[1764620171900,0.39542099,85561.0,85560.0,0.00321009]
[1764620172125,0.39542099,85561.0,85560.0,0.00421009]
[1764620172329,0.00038839,85561.0,85560.0,0.00421009]
[1764620172745,0.00038839,85561.0,85560.0,0.00321009]
[1764620173104,0.00038839,85561.0,85560.0,0.00521009]
[1764620174010,0.1177958,85561.0,85560.0,0.00521009]
[1764620174444,0.32338839,85561.0,85560.0,0.00521009]
[1764620174646,0.34210839,85561.0,85560.0,0.00521009]
[1764620174821,0.34210839,85561.0,85560.0,0.00321009]
[1764620175244,0.34310839,85561.0,85560.0,0.00621009]
[1764620175779,0.57585974,85561.0,85560.0,0.00321009]
[1764620176000,0.00038839,85561.0,85560.0,0.00321009]
[1764620176244,0.00138839,85561.0,85560.0,0.26599925]
[1764620176448,0.00138839,85561.0,85560.0,0.26299925]
[1764620176449,0.00038839,85561.0,85560.0,0.26299925]
[1764620176655,0.00038839,85561.0,85560.0,0.27447929]
[1764620176859,0.00138839,85561.0,85560.0,0.27747929]
[1764620176987,0.00138839,85561.0,85560.0,0.26599925]
[1764620177197,0.00138839,85561.0,85560.0,0.00621009]
[1764620177425,0.00138839,85561.0,85560.0,0.23996418]
[1764620177806,0.00038839,85561.0,85560.0,0.23796418]
[1764620178187,0.00138839,85561.0,85560.0,0.24396418]
[1764620178415,0.00038839,85561.0,85560.0,0.23796418]
[1764620178887,0.00138839,85561.0,85560.0,0.24296418]
[1764620179308,0.00138839,85561.0,85560.0,0.31796721]
[1764620179524,0.00138839,85561.0,85560.0,0.24396418]
[1764620179850,0.00138839,85561.0,85560.0,0.30648717]
[1764620180054,0.00138839,85561.0,85560.0,0.31696721]
[1764620180255,0.23363996,85602.0,85594.0,0.01168306]
[1764620180479,0.01168292,85595.0,85573.0,0.01872]
[1764620180824,0.12908938,85602.0,85573.0,0.2338341]
[1764620180825,0.01168429,85585.0,85573.0,0.2338341]
[1764620181031,0.01168524,85578.0,85573.0,0.00011624]
[1764620181239,0.23371115,85576.0,85573.0,0.23283411]
[1764620181509,0.24538255,85581.0,85574.0,0.23371539]
[1764620181833,0.00011648,85581.0,85579.0,0.23370219]
[1764620181972,0.01168524,85578.0,85573.0,0.01368592]
[1764620182182,0.01168524,85578.0,85573.0,0.24540409]
[1764620182381,0.001,85576.0,85574.0,0.03759496]
[1764620182603,0.001,85576.0,85574.0,0.27131035]
[1764620183676,0.23471082,85576.0,85574.0,0.02590917]
[1764620183857,0.23471082,85576.0,85574.0,0.02690917]
[1764620184332,0.23371082,85576.0,85574.0,0.001]
[1764620184532,0.23471082,85576.0,85574.0,0.006]
[1764620184736,0.23371311,85575.0,85574.0,0.006]
[1764620184971,0.0116862,85571.0,85567.0,0.01168674]
[1764620185178,0.0116862,85571.0,85563.0,0.01168729]
[1764620185379,0.001,85576.0,85563.0,0.01168729]
[1764620185380,0.01268551,85576.0,85568.0,0.24541834]
[1764620185577,0.23373042,85569.0,85566.0,0.24542432]
[1764620185800,0.01168606,85572.0,85567.0,0.24542086]
[1764620185801,0.01168633,85570.0,85567.0,0.24542086]
[1764620185990,0.00011648,85581.0,85568.0,0.07851639]
[1764620186192,0.23372404,85571.0,85567.0,0.01168674]
[1764620186506,0.01168565,85575.0,85570.0,0.24541049]
[1764620186507,0.01168579,85574.0,85570.0,0.24541049]
[1764620186898,0.01168497,85580.0,85572.0,0.24540552]
[1764620187104,0.23371585,85574.0,85570.0,0.01168633]
[1764620187334,0.23371585,85574.0,85570.0,0.24541306]
[1764620187662,0.23471585,85574.0,85570.0,0.25041306]
[1764620187861,0.23372404,85571.0,85570.0,0.005]
[1764620188884,0.23372404,85571.0,85570.0,0.006]
[1764620189084,0.23372404,85571.0,85570.0,0.001]
[1764620189489,0.23374646,85563.0,85560.0,0.24584163]
[1764620189741,0.2337489,85562.0,85560.0,0.24584163]
[1764620189944,0.24543048,85564.0,85561.0,0.23375028]
[1764620190293,0.24543048,85564.0,85562.0,0.23374844]
[1764620190495,0.01168565,85575.0,85566.0,0.01168688]
[1764620190623,0.23372154,85572.0,85568.0,0.23373117]
[1764620190808,0.23372154,85572.0,85568.0,0.23273117]
[1764620191267,0.23370046,85580.0,85568.0,0.01168661]
[1764620191469,0.01168551,85576.0,85573.0,0.23371785]
[1764620191674,0.01872,85579.0,85574.0,0.01168579]
[1764620191872,0.01872,85579.0,85576.0,0.23370977]
[1764620192100,0.24538683,85580.0,85576.0,0.23370977]
[1764620192221,0.24538683,85580.0,85575.0,0.00232518]
[1764620192222,0.23370492,85578.0,85575.0,0.00232518]
[1764620192421,0.23371038,85576.0,85572.0,0.23372072]
[1764620192628,0.23371551,85575.0,85571.0,0.23372392]
[1764620192928,0.23371416,85575.0,85574.0,0.0023575]
[1764620193123,0.06296648,85600.0,85578.0,0.23370345]
[1764620193327,0.03138433,85604.0,85580.0,0.35110687]
[1764620193552,0.01168224,85600.0,85580.0,0.3647505]
[1764620193881,0.2453198,85603.0,85580.0,0.3647505]
[1764620194212,0.24533048,85599.0,85580.0,0.3647505]
[1764620194363,0.01168292,85595.0,85580.0,0.23586305]
[1764620194570,0.24535868,85589.0,85580.0,0.23586305]
[1764620194809,0.00111648,85581.0,85580.0,0.24086305]
[1764620195225,0.00111648,85581.0,85580.0,0.24186305]
[1764620195379,0.00111648,85581.0,85580.0,0.34153888]
[1764620195566,0.00111648,85581.0,85580.0,0.35301892]
[1764620195762,0.00111648,85581.0,85580.0,0.25334309]
[1764620196439,0.00111648,85581.0,85580.0,0.24186305]
[1764620196637,0.00111648,85581.0,85580.0,0.00816359]
[1764620197445,0.23481321,85581.0,85580.0,0.00816359]
[1764620198132,0.00111648,85581.0,85580.0,0.00816359]
[1764620198374,0.23481321,85581.0,85580.0,0.00816359]
[1764620200632,0.23481321,85581.0,85580.0,0.00716359]
[1764620201075,0.23381321,85581.0,85580.0,0.00316359]
[1764620201244,0.55681321,85581.0,85580.0,0.00316359]
[1764620201423,0.58198892,85581.0,85580.0,0.00516359]
[1764620201619,0.58198892,85581.0,85580.0,0.00616359]
[1764620202024,0.60070892,85581.0,85580.0,0.00616359]
[1764620202646,0.60070892,85581.0,85580.0,0.00516359]
[1764620202852,0.04389571,85581.0,85580.0,0.00516359]
[1764620203051,0.16130312,85581.0,85580.0,0.00216359]
[1764620203599,0.39599985,85581.0,85580.0,0.00216359]
[1764620203797,0.25887244,85581.0,85580.0,0.00216359]
[1764620203938,0.23469673,85581.0,85580.0,0.00316359]
[1764620204358,0.23369673,85581.0,85580.0,0.00216359]
[1764620204691,0.23369673,85581.0,85580.0,0.00316359]
[1764620205182,0.23369673,85581.0,85580.0,0.00216359]
[1764620206158,0.25890571,85582.0,85580.0,0.00416359]
[1764620206357,0.23369673,85581.0,85580.0,0.002]
[1764620206570,0.25890841,85581.0,85580.0,0.002]
[1764620206971,0.24540122,85575.0,85573.0,0.01148004]
[1764620207164,0.24540122,85575.0,85573.0,0.086252]
[1764620207370,0.01168497,85580.0,85575.0,0.01168565]
[1764620207568,9.982e-05,85582.0,85576.0,0.01168551]
[1764620207767,9.982e-05,85582.0,85581.0,0.23369673]
[1764620208576,9.982e-05,85582.0,85581.0,0.24517677]
[1764620210457,9.982e-05,85582.0,85581.0,0.63069976]
[1764620210670,9.982e-05,85582.0,85581.0,0.74792572]
[1764620211162,0.00109982,85582.0,85581.0,0.75292572]
[1764620211598,0.00109982,85582.0,85581.0,0.75492572]
[1764620211803,0.00109982,85582.0,85581.0,0.75705699]
[1764620212421,0.00109982,85582.0,85581.0,1.15705699]
[1764620213059,9.982e-05,85582.0,85581.0,1.14805699]
[1764620213362,0.00109982,85582.0,85581.0,1.15705699]
[1764620213572,9.982e-05,85582.0,85581.0,1.15005699]
[1764620213766,0.00109982,85582.0,85581.0,1.15605699]
[1764620214180,0.00109982,85582.0,85581.0,1.15805699]
[1764620214332,9.982e-05,85582.0,85581.0,1.15005699]
[1764620214515,9.982e-05,85582.0,85581.0,1.14805699]
[1764620214976,0.00109982,85582.0,85581.0,1.15705699]
[1764620215591,0.00109982,85582.0,85581.0,1.094534]
[1764620216014,0.00109982,85582.0,85581.0,0.66602804]
[1764620216167,0.01168183,85603.0,85581.0,0.66602804]
[1764620216168,0.23359573,85620.0,85597.0,0.24533323]
[1764620216398,0.24533123,85599.0,85595.0,0.24534142]
[1764620216615,0.35039691,85618.0,85589.0,0.01168374]
[1764620216616,0.01168306,85594.0,85589.0,0.01168374]
[1764620216911,0.01168251,85598.0,85594.0,0.01168306]
[1764620217090,0.01168183,85603.0,85599.0,0.23364758]
[1764620217298,0.23364213,85601.0,85600.0,0.04906706]
[1764620217498,0.23365031,85598.0,85597.0,0.001]
[1764620217700,0.24533282,85598.0,85595.0,0.01168292]
[1764620217904,0.24533282,85598.0,85597.0,0.0016143]
[1764620218783,0.36274023,85598.0,85597.0,0.0016143]
[1764620219399,0.36274023,85598.0,85597.0,0.0056143]
[1764620219596,0.36274023,85598.0,85597.0,0.0016143]
[1764620220016,0.36274023,85598.0,85597.0,0.0026143]
[1764620220419,0.71088626,85598.0,85597.0,0.0026143]
[1764620220822,0.71088626,85598.0,85597.0,0.0016143]
[1764620223409,0.74227059,85598.0,85597.0,0.0016143]
[1764620223608,0.80854869,85598.0,85597.0,0.0016143]
[1764620224020,0.80854869,85598.0,85560.0,0.0024]
[1764620224021,0.23375135,85561.0,85560.0,0.0024]
[1764620224239,0.03040633,85570.0,85560.0,0.0140877]
[1764620224488,0.01168702,85565.0,85560.0,0.01528314]
[1764620224691,0.01168715,85564.0,85561.0,0.02607354]
[1764620224869,0.23374603,85563.0,85561.0,0.02607354]
[1764620225075,0.23374098,85565.0,85561.0,0.25982484]
[1764620225290,0.0116847,85582.0,85569.0,0.01168647]
[1764620225489,0.01168442,85584.0,85576.0,0.01168551]
[1764620225673,0.01168401,85587.0,85582.0,0.0116847]
[1764620226010,0.11740741,85585.0,85579.0,0.0116851]
[1764620226169,0.11740741,85585.0,85575.0,0.01168565]
[1764620226170,0.24538766,85579.0,85575.0,0.01168565]
[1764620226371,0.24539315,85578.0,85575.0,0.0268774]
[1764620226570,0.0116862,85571.0,85567.0,0.01168674]
[1764620226769,0.24541027,85571.0,85568.0,0.23373137]
[1764620226975,0.24541027,85571.0,85567.0,0.24542061]
[1764620227287,0.01168524,85578.0,85568.0,0.24541662]
[1764620227288,0.23371776,85574.0,85568.0,0.24541662]
[1764620227474,0.24540465,85573.0,85570.0,0.01168633]
[1764620227680,0.03144756,85595.0,85570.0,0.01168633]
[1764620227681,0.01168483,85581.0,85571.0,0.0116862]
[1764620227891,0.0116847,85582.0,85572.0,0.01168606]
[1764620228153,0.01168551,85576.0,85572.0,0.24540681]
[1764620228397,0.01168551,85576.0,85571.0,0.0116862]
[1764620228398,0.01168415,85586.0,85583.0,0.01168456]
[1764620228626,0.02513927,85596.0,85589.0,0.01168374]
[1764620228762,0.01168251,85598.0,85593.0,0.23366216]
[1764620228972,0.03681966,85601.0,85593.0,0.23366216]
[1764620228973,0.03681966,85601.0,85593.0,0.01168319]
[1764620229175,0.23364768,85599.0,85594.0,0.2336599]
[1764620229379,0.01168265,85597.0,85593.0,0.24534609]
[1764620229559,0.01168265,85597.0,85590.0,0.23367022]
[1764620229560,0.01168415,85586.0,85583.0,0.001]
[1764620229763,0.01168579,85574.0,85570.0,0.01168633]
[1764620229981,0.24540177,85574.0,85570.0,9.982e-05]
[1764620230296,0.23372153,85572.0,85570.0,9.982e-05]
[1764620231604,0.11740741,85571.0,85570.0,9.982e-05]
[1764620231838,0.23372153,85572.0,85570.0,9.982e-05]
[1764620231980,0.35113145,85571.0,85570.0,0.00609982]
[1764620232339,0.35113145,85571.0,85570.0,0.00109982]
[1764620233059,0.23372283,85572.0,85570.0,0.00109982]
[1764620233207,0.23372404,85571.0,85570.0,9.982e-05]
[1764620233408,0.35113145,85571.0,85570.0,9.982e-05]
[1764620234416,0.35113145,85571.0,85570.0,0.00209982]
[1764620234668,0.35113145,85571.0,85570.0,9.982e-05]
[1764620234853,0.24540774,85573.0,85570.0,9.982e-05]
[1764620235080,0.23372404,85571.0,85570.0,0.00109982]
[1764620235219,0.23372404,85571.0,85570.0,9.982e-05]
[1764620235426,0.01168592,85573.0,85570.0,9.982e-05]
[1764620235632,0.23372404,85571.0,85570.0,0.00109982]
[1764620236253,0.35113145,85571.0,85570.0,9.982e-05]
[1764620236574,0.35113145,85571.0,85570.0,0.00197206]
[1764620237621,0.35113145,85571.0,85570.0,0.00297206]
[1764620237838,0.35113145,85571.0,85570.0,0.00097206]
[1764620238731,0.35213145,85571.0,85570.0,0.00097206]
[1764620238950,0.37725846,85571.0,85570.0,0.00097206]
[1764620241345,0.70025846,85571.0,85570.0,0.00097206]
[1764620243229,0.76278145,85571.0,85570.0,0.00097206]
[1764620246915,0.39597846,85571.0,85570.0,0.00097206]
[1764620247611,0.39497846,85571.0,85570.0,0.00097206]
[1764620247767,0.74941623,85571.0,85570.0,0.00097206]
[1764620247976,0.75041623,85571.0,85570.0,0.00097206]
[1764620248167,0.71897846,85571.0,85570.0,0.00097206]
[1764620248910,0.70025846,85571.0,85570.0,0.00097206]
[1764620249112,0.71897846,85571.0,85570.0,0.00097206]
[1764620249475,0.14353442,85571.0,85570.0,0.00097206]
[1764620249677,0.001,85571.0,85570.0,0.26050637]
[1764620249880,0.01168551,85576.0,85571.0,0.0116862]
[1764620250082,0.09027403,85584.0,85571.0,0.0116862]
[1764620250083,0.01168456,85583.0,85572.0,0.01168606]
[1764620250264,0.01168538,85577.0,85573.0,0.24540447]
[1764620250460,0.01168538,85577.0,85574.0,0.02688766]
[1764620250796,0.01168565,85575.0,85570.0,0.00109982]
[1764620250969,0.01872,85582.0,85571.0,0.001]
[1764620251164,0.323,85586.0,85583.0,0.01168456]
[1764620251363,0.11740741,85590.0,85583.0,0.01168456]
[1764620251364,0.01872,85590.0,85588.0,0.23367713]
[1764620251576,0.01872,85590.0,85584.0,0.01168442]
[1764620251776,0.01872,85590.0,85585.0,0.01168429]
[1764620252015,0.01872,85590.0,85586.0,0.01168415]
[1764620252198,0.01872,85590.0,85587.0,0.24536285]
[1764620252396,0.44040741,85591.0,85589.0,0.23367488]
[1764620252596,0.24535668,85590.0,85586.0,0.01168415]
[1764620252793,0.01168347,85591.0,85588.0,0.23367714]
[1764620253004,0.33468319,85593.0,85589.0,0.24535862]
[1764620253200,0.23365628,85596.0,85592.0,0.23366473]
[1764620253423,0.03040265,85597.0,85592.0,0.23366473]
[1764620253424,0.323,85595.0,85592.0,0.01168333]
[1764620253602,0.01168142,85606.0,85600.0,0.01168224]
[1764620253801,0.01168156,85605.0,85603.0,0.23263601]
[1764620254066,0.56831306,85605.0,85602.0,0.24532002]
[1764620254245,0.01168183,85603.0,85588.0,0.01168388]
[1764620254560,0.01168183,85603.0,85597.0,0.24533349]
[1764620254735,0.23364616,85600.0,85596.0,0.01168278]
[1764620254939,6.352e-05,85603.0,85600.0,0.01168224]
[1764620255463,6.352e-05,85603.0,85602.0,0.2336394]
[1764620255638,6.352e-05,85603.0,85602.0,0.34323001]
[1764620256419,6.352e-05,85603.0,85602.0,0.34623001]
[1764620256623,6.352e-05,85603.0,85602.0,0.33574997]
[1764620256822,6.352e-05,85603.0,85602.0,0.34723001]
[1764620257453,6.352e-05,85603.0,85602.0,0.004]
[1764620258673,6.352e-05,85603.0,85602.0,0.12140741]
[1764620258844,6.352e-05,85603.0,85602.0,0.11740741]
[1764620259070,6.352e-05,85603.0,85602.0,0.12888745]
[1764620259274,6.352e-05,85603.0,85602.0,0.13088745]
[1764620259494,6.352e-05,85603.0,85602.0,0.2162788]
[1764620259710,6.352e-05,85603.0,85602.0,0.2192788]
[1764620260041,6.352e-05,85603.0,85602.0,0.2202788]
[1764620260237,6.352e-05,85603.0,85602.0,0.28280179]
[1764620262729,6.352e-05,85603.0,85602.0,0.004]
[1764620263136,0.23370019,85603.0,85602.0,0.004]
[1764620263992,6.352e-05,85603.0,85602.0,0.004]
[1764620265035,6.352e-05,85603.0,85600.0,0.24532389]
[1764620265224,0.23370068,85603.0,85602.0,0.003]
[1764620265448,6.352e-05,85603.0,85602.0,0.0780676]
[1764620266088,6.352e-05,85603.0,85602.0,0.003]
[1764620266089,0.23370019,85603.0,85602.0,0.003]
[1764620267088,0.25242019,85603.0,85602.0,0.003]
[1764620267506,0.57542019,85603.0,85602.0,0.003]
[1764620268457,0.01168333,85592.0,85589.0,0.00025838]
[1764620268746,0.01168319,85593.0,85590.0,0.05026683]
[1764620269184,0.01168319,85593.0,85590.0,0.06195043]
[1764620269429,0.24534038,85596.0,85590.0,0.05026683]
[1764620269649,0.23366411,85593.0,85590.0,0.29562023]
[1764620269863,0.01168319,85593.0,85590.0,0.05126683]
[1764620270034,0.23366942,85591.0,85590.0,0.004]
[1764620270233,0.23366942,85591.0,85590.0,0.001]
[1764620270463,0.23366832,85592.0,85590.0,0.004]
[1764620270758,0.2453475,85593.0,85590.0,0.004]
[1764620270919,0.23366746,85592.0,85590.0,0.003]
[1764620271116,0.23366698,85592.0,85590.0,0.003]
[1764620271558,0.01168265,85597.0,85590.0,0.003]
[1764620271781,0.01168265,85597.0,85589.0,0.00025838]
[1764620271782,0.23367215,85590.0,85589.0,0.00025838]
[1764620273344,0.23367215,85590.0,85589.0,0.00325838]
[1764620273678,0.13612741,85591.0,85589.0,0.00325838]
[1764620273879,0.23367215,85590.0,85589.0,0.00325838]
[1764620274538,0.23367215,85590.0,85589.0,0.00025838]
[1764620274901,0.55667215,85590.0,85589.0,0.00025838]
[1764620275587,0.55667215,85590.0,85589.0,0.00325838]
[1764620276292,0.3910228,85590.0,85589.0,0.00325838]
[1764620276494,0.3910228,85590.0,85589.0,0.00025838]
[1764620277374,0.41614741,85590.0,85589.0,0.00025838]
[1764620277780,0.3910228,85590.0,85589.0,0.00325838]
[1764620278013,0.23365295,85598.0,85589.0,0.00325838]
[1764620278206,0.23367215,85590.0,85589.0,0.0281218]
[1764620278386,0.23367215,85590.0,85589.0,0.00325838]
[1764620278387,0.35107956,85590.0,85589.0,0.00325838]
[1764620278954,0.35107956,85590.0,85589.0,0.00025838]
[1764620279361,0.35107956,85590.0,85589.0,0.00325838]
[1764620280389,0.69923835,85590.0,85589.0,0.00325838]
[1764620281392,0.71795835,85590.0,85589.0,0.00325838]
[1764620281599,0.4842862,85590.0,85589.0,0.00025838]
[1764620281780,0.71795835,85590.0,85589.0,0.00025838]
[1764620282030,0.71895835,85590.0,85589.0,0.00025838]
[1764620282238,0.71795835,85590.0,85589.0,0.00025838]
[1764620282661,0.71795835,85590.0,85589.0,0.00125838]
[1764620283877,0.71795835,85590.0,85589.0,0.00025838]
[1764620284437,0.323,85590.0,85589.0,0.00025838]
[1764620284643,0.0315236,85603.0,85593.0,0.01168319]
[1764620284644,6.352e-05,85603.0,85593.0,0.01168319]
[1764620284845,6.352e-05,85603.0,85595.0,0.23365619]
[1764620285046,0.01168265,85597.0,85595.0,0.02572815]
[1764620285224,0.01168265,85597.0,85592.0,0.23366669]
[1764620285225,0.23365577,85596.0,85591.0,0.23366876]
[1764620285384,0.24534402,85595.0,85590.0,0.23366955]
[1764620285590,0.01168306,85594.0,85590.0,0.24535315]
[1764620285801,0.0116821,85601.0,85590.0,0.24535315]
[1764620285802,0.34172,85608.0,85595.0,0.01168292]
[1764620286006,0.24533055,85599.0,85594.0,0.24533883]
[1764620286205,0.323,85608.0,85599.0,0.01168237]
[1764620286407,0.03146008,85619.0,85602.0,0.2336394]
[1764620286632,0.23359354,85619.0,85602.0,0.2336394]
[1764620286864,0.01167896,85624.0,85602.0,0.2336394]
[1764620286865,0.05660823,85625.0,85602.0,0.24511944]
[1764620287043,0.01167978,85618.0,85602.0,0.24511944]
[1764620287245,0.01167965,85619.0,85602.0,0.24511944]
[1764620287407,0.24527588,85618.0,85602.0,0.24511944]
[1764620287610,0.01168005,85616.0,85602.0,0.2366394]
[1764620287834,0.01167965,85619.0,85602.0,0.24811944]
[1764620287991,0.24528152,85616.0,85602.0,0.24611944]
[1764620288196,0.01168005,85616.0,85602.0,0.25111944]
[1764620288475,0.24528135,85616.0,85602.0,0.25111944]
[1764620288956,0.23363398,85604.0,85602.0,0.006]
[1764620289108,0.23370019,85603.0,85602.0,0.005]
[1764620289311,0.23370019,85603.0,85602.0,0.006]
[1764620289937,0.01168251,85598.0,85593.0,0.01168319]
[1764620290140,6.352e-05,85603.0,85602.0,0.001]
[1764620290321,0.23370213,85603.0,85602.0,0.004]
[1764620290504,0.23370213,85603.0,85602.0,0.001]
[1764620290930,0.24534685,85595.0,85591.0,0.01168347]
[1764620291166,0.01868,85601.0,85595.0,0.01168292]
[1764620291369,0.24532859,85600.0,85596.0,0.01168278]
[1764620291526,0.01168237,85599.0,85594.0,0.01168306]
[1764620291731,0.24534184,85595.0,85591.0,0.23366773]
[1764620292004,0.23366289,85594.0,85590.0,0.24535574]
[1764620292139,0.01168292,85595.0,85593.0,0.001]
[1764620292344,0.23366123,85594.0,85593.0,0.001]
[1764620292540,0.23366508,85593.0,85591.0,0.01468347]
[1764620293123,0.23366669,85592.0,85591.0,0.004]
[1764620293244,0.23366669,85592.0,85591.0,0.003]
[1764620293649,0.23366957,85591.0,85589.0,0.00025838]
[1764620293871,0.23367215,85590.0,85589.0,0.00025838]
[1764620294160,0.39494317,85590.0,85589.0,0.00025838]
[1764620294562,0.71794317,85590.0,85589.0,0.00025838]
[1764620295484,0.74940325,85590.0,85589.0,0.00025838]
[1764620295809,0.71794317,85590.0,85589.0,0.00025838]
[1764620296771,0.75985203,85590.0,85589.0,0.00025838]
[1764620297002,0.71794317,85590.0,85589.0,0.00025838]
[1764620298366,0.71894317,85590.0,85589.0,0.00025838]
[1764620300162,0.70026317,85590.0,85589.0,0.00025838]
[1764620300378,0.71894317,85590.0,85589.0,0.00025838]
[1764620300523,0.75041757,85590.0,85589.0,0.00025838]
[1764620300847,0.71894317,85590.0,85589.0,0.00025838]
[1764620301047,0.71794317,85590.0,85589.0,0.00025838]
[1764620301401,0.71894317,85590.0,85589.0,0.00025838]
[1764620301840,0.39494317,85590.0,85589.0,0.00025838]
[1764620304161,0.74941757,85590.0,85589.0,0.00025838]
[1764620304340,0.71794317,85590.0,85589.0,0.00025838]
[1764620305131,0.69926317,85590.0,85589.0,0.00025838]
[1764620305332,0.71794317,85590.0,85589.0,0.00025838]
[1764620306637,0.71894317,85590.0,85589.0,0.00025838]
[1764620306832,0.71794317,85590.0,85589.0,0.00025838]
[1764620307068,0.39594317,85590.0,85589.0,0.00025838]
[1764620307453,0.39494317,85590.0,85589.0,0.00025838]
[1764620308553,0.71794317,85590.0,85589.0,0.00025838]
[1764620308855,0.78046616,85590.0,85589.0,0.00025838]
[1764620309050,0.23375135,85561.0,85547.0,0.01168948]
[1764620309300,0.23375135,85561.0,85541.0,0.0116903]
[1764620309301,0.03147794,85578.0,85568.0,0.01168661]
[1764620309470,0.01168538,85577.0,85570.0,0.2454115]
[1764620309689,0.2453938,85577.0,85572.0,0.24540737]
[1764620309895,0.2453938,85577.0,85566.0,0.24542456]
[1764620309896,0.01168374,85589.0,85580.0,0.01168497]
[1764620310097,0.2346728,85590.0,85575.0,0.01168565]